Cogmind - Beta 14 @@@ ROGUE MODE // 2024.08.17 @ 20:41:32 Player: Some Pennies Result: Destroyed by Tracker with Immobilizer Performance ------------- Evolutions (8) 4000 Regions Visited (32) 6400 Robots Destroyed (324) 1620 Value Destroyed (13901) 13901 Prototype IDs (82) 1640 Alien Tech Used (9) 1800 Bonus (19162) 19162 TOTAL SCORE: 48523 Bonus ------- Triggered High Security 500 Triggered Max Security 1000 High Alert Combat Kills 2640 Follower Combat Kills 1838 Network Hubs Disabled 800 Met Data Miner 300 Met Imprinter 300 Destroyed Z-Imprinter 1000 Triggered Deep Caves Wall 500 Exposed GOLEM Chamber 500 Met Zhirov 300 Built Enhanced Grunts 300 Met R17 at Cetus 500 Used Core Reset Matrix 3000 Scanned by Researcher 500 Pursued by Intercept 500 Integrated Exoskeleton 5000 Friendly Fire -316 Cogmind --------- Core Integrity 0/1450 Matter 1/300 Energy 200/200 System Corruption 1% Temperature Cool (0) Movement Walking (30) Location -2/Section 7 Parts ------- > --- POWER (1) -------- (None) > --- PROPULSION (3) --- Sigix Exoskeleton > --- UTILITY (3) ------ (None) > --- WEAPON (2) ------- Sigix Sheargun Sigix Sheargun > --- INVENTORY (5) ---- Subatomic Replicator EMDS Peak State ------------ > --- POWER ------------ (None) > --- PROPULSION ------- Sigix Exoskeleton > --- UTILITY ---------- (None) > --- WEAPON ----------- Sigix Sheargun Sigix Sheargun > --- INVENTORY -------- Subatomic Replicator EMDS [Rating: 187] Favorites ----------- Power Assembled Flux Generator Engine Improved Ion Engine Power Core Meta Core Reactor Assembled Flux Generator Propulsion Assembled Alloy Leg Treads Light Treads Leg Assembled Alloy Leg Wheel Wheel Hover Unit Combat Linear Gravjet Flight Unit Improved Flight Unit Utility Assembled Biocell Array Device GOLEM Unit Storage Assembled Biocell Array Processor Advanced Signal Interpreter Hackware System Shield Protection Assembled Alloy Armor Artifact Spacefold Activator Weapon Assembled Focal Cannon Energy Gun Subdweller Laser Energy Cannon Assembled Focal Cannon Ballistic Gun Subdweller Machine Gun Ballistic Cannon Improved Light Cannon Launcher Heavy Missile Launcher Special Weapon Mining Laser Impact Weapon Power Maul Slashing Weapon Axe Special Melee Weapon Advanced Datajack Build | -11 -10 -10 -8 -7 -7 -7 -7 -7 -6 -6 -6 -6 -6 -6 -6 -5 -5 -5 -5 -5 -5 -4 -4 -4 -4 -4 -4 -3 -3 -2 -2 -2 ------- Run | Yrd Mat Sub Mat Fac Low Low Zio Dee Pro Fac Was Fac Low Low Dat Pro Fac Ext Cet Arc Hub Fac Was Fac Upp Upp Zhi Pro Res Res Qua Sec Slots Evolved 16 | . . . 4 2 . . . . . 2 . . . . . . 2 . . . . 2 . . . . . . 2 2 . . Power 2 | . . . . 1 . . . . . . . . . . . . 1 . . . . . . . . . . . . . . . Propulsion 4 | . . . 2 . . . . . . . . . . . . . . . . . . . . . . . . . 2 . . . Utility 10 | . . . 2 1 . . . . . 2 . . . . . . 1 . . . . 2 . . . . . . . 2 . . Weapon . | . . . . . . . . . . . . . . . . . . . . . . . . . . . . . . . . . Parts Attached 422 | 7 8 20 36 39 2 1 5 48 . 3 5 8 . 1 . 7 15 24 10 10 50 22 7 29 3 1 13 4 7 1 19 17 Power 29 | 1 . 2 4 4 . . . 3 . . . . . . . . 1 . . . 2 6 . . . . 1 1 1 . 2 1 Engine 9 | 1 . 2 2 1 . . . . . . . . . . . . . . . . . . . . . . . . . . 2 1 Core 8 | . . . 2 3 . . . . . . . . . . . . 1 . . . . 2 . . . . . . . . . . Reactor 12 | . . . . . . . . 3 . . . . . . . . . . . . 2 4 . . . . 1 1 1 . . . Propulsion 82 | 2 2 1 13 7 . . . 7 . 2 3 . . . . 1 1 5 3 3 10 5 3 4 1 . 1 . 3 . 2 3 Treads 30 | . 2 1 9 . . . . . . . 3 . . . . 1 . 4 2 2 5 1 . . . . . . . . . . Leg 19 | . . . 3 . . . . 4 . 2 . . . . . . 1 1 1 . 5 1 1 . . . . . . . . . Wheel 2 | 2 . . . . . . . . . . . . . . . . . . . . . . . . . . . . . . . . Hover 7 | . . . . . . . . 2 . . . . . . . . . . . 1 . . 2 2 . . . . . . . . Flight 24 | . . . 1 7 . . . 1 . . . . . . . . . . . . . 3 . 2 1 . 1 . 3 . 2 3 Utility 181 | 2 2 . 7 11 1 . 1 19 . 1 2 8 . 1 . 1 9 16 5 7 31 8 2 18 2 . 8 3 2 1 8 5 Device 104 | 1 . . 4 7 . . 1 10 . . 2 6 . . . . 7 10 2 4 20 6 1 6 2 . 5 2 1 1 4 2 Storage 17 | 1 2 . . 1 . . . 3 . 1 . 2 . . . . 1 1 . . 1 1 . 3 . . . . . . . . Processor 16 | . . . . 1 . . . . . . . . . . . . 1 1 1 . 1 . . 7 . . 2 . 1 . 1 . Hackware 10 | . . . . 2 1 . . . . . . . . . . . . . . . . . . 2 . . 1 1 . . 2 1 Protection 31 | . . . 3 . . . . 6 . . . . . 1 . 1 . 4 2 3 9 1 1 . . . . . . . . . Artifact 3 | . . . . . . . . . . . . . . . . . . . . . . . . . . . . . . . 1 2 Weapon 130 | 2 4 17 12 17 1 1 4 19 . . . . . . . 5 4 3 2 . 7 3 2 7 . 1 3 . 1 . 7 8 Energy Gun 15 | 1 . 7 1 1 . . . 4 . . . . . . . . . . 1 . . . . . . . . . . . . . Energy Cannon 24 | . . . 1 2 . 1 1 9 . . . . . . . . . . . . 2 1 . 2 . . . . . . 1 4 Ballistic Gun 18 | 1 2 4 6 . . . . . . . . . . . . . 2 . 1 . . . . . . . . . 1 . 1 . Ballistic Cannon 2 | . . . 1 . . . . . . . . . . . . . . . . . . . 1 . . . . . . . . . Launcher 20 | . . 1 2 1 1 . 2 3 . . . . . . . 4 1 1 . . 3 . . . . . . . . . 1 . Special Weapon 17 | . 2 5 . 4 . . . . . . . . . . . . . . . . 2 1 . . . . 1 . . . . 2 Impact Weapon 15 | . . . . 3 . . 1 3 . . . . . . . 1 1 . . . . . . 3 . . 1 . . . 2 . Slashing Weapon 13 | . . . 1 6 . . . . . . . . . . . . . 1 . . . . . . . 1 1 . . . 2 1 Piercing Weapon . | . . . . . . . . . . . . . . . . . . . . . . . . . . . . . . . . . Special Melee Weapon 6 | . . . . . . . . . . . . . . . . . . 1 . . . 1 1 2 . . . . . . . 1 Unidentified Prototypes 41 | . . . 1 4 . . . 12 . . . . . . . . . 2 5 . 5 1 1 3 . . 3 . 1 . 3 . Corrupted Parts 2 | . . . . . . . . . . . . . . . . . . . 1 1 . . . . . . . . . . . . System Corruption 7 | . . . . . . . . . . . . . . . . . . . 6 1 . . . . . . . . . . . . Parts Lost 78 | . . 3 3 . . . . 2 1 . 4 . . . . 2 . . . . 28 11 . 4 . 1 . . 5 1 1 12 Power 9 | . . 1 . . . . . . . . . . . . . . . . . . 3 2 . . . . . . 1 . . 2 Propulsion 20 | . . 1 3 . . . . . . . 1 . . . . 1 . . . . 6 2 . . . . . . 2 . . 4 Utility 38 | . . . . . . . . 2 . . 3 . . . . . . . . . 13 7 . 4 . . . . 2 1 . 6 Weapon 11 | . . 1 . . . . . . 1 . . . . . . 1 . . . . 6 . . . . 1 . . . . 1 . Highest Loss Streak 10 | . . 2 1 . . . . 1 1 . 4 . . . . 1 . . . . 10 6 . 2 . 1 . . 5 6 1 8 To Critical Strikes 1 | . . . . . . . . . . . 1 . . . . . . . . . . . . . . . . . . . . . Average Slot Usage (%) 85 | . 100 99 98 82 84 84 87 93 82 86 80 79 80 79 66 77 84 85 85 84 82 66 50 77 66 71 71 64 69 57 76 63 Engine 2 | . 14 13 6 1 . . . . . . . . . . . . . . . . . . . . . . . . . . 4 2 Core 2 | . . . 2 5 7 7 7 5 . . . . . . . . 5 5 5 5 3 2 . . . . . . . . . . Reactor 4 | . . . . . . . . 6 6 6 6 6 6 6 6 6 5 5 5 5 7 5 5 4 . . 3 . 4 . . . Treads 7 | . . 28 33 . . . . . . . 4 6 6 6 6 4 5 4 4 4 4 2 . . . . . . . . . . Leg 11 | . . . 2 . . . . 25 29 26 15 13 13 13 13 13 14 15 16 14 13 9 . . . . . . . . . . Flight 3 | . . . . 29 30 30 30 4 . . . . . . . . . . . . . 3 10 9 10 10 10 10 14 13 16 14 Device 15 | . 14 14 18 7 7 7 6 11 7 13 18 19 20 19 13 15 19 19 14 15 16 20 10 10 13 21 24 21 21 14 20 12 Storage 10 | . 14 14 9 7 7 7 7 9 15 19 20 16 13 13 13 13 10 10 10 10 10 7 . 4 5 5 5 5 4 4 4 2 Processor 4 | . . . . 6 7 7 7 7 7 6 1 . . . . . 4 5 5 5 5 5 5 23 21 21 13 7 4 8 7 4 Hackware 1 | . . . . 14 15 15 15 . . . . . . . . . . . . . . . . 3 5 5 8 12 14 13 16 20 Protection 4 | . . . 8 . . . . 3 . . . 3 6 6 13 10 5 5 10 9 6 . 5 4 . . . . . . . . Energy Gun 1 | . 4 9 1 . . . . . . . . . . . . . . . . . . . . . . . . . . . . . Energy Cannon 7 | . . . 5 . . . 1 11 14 13 13 12 13 13 . 12 9 10 9 10 9 4 . . . . . . . . . 1 Ballistic Gun 2 | . 23 16 10 . . . . . . . . . . . . . . . . . . . . . . . . . . . . . Impact Weapon 2 | . . . . 2 7 7 5 1 . . . . . . . . 4 5 5 5 3 . . 4 5 4 . 5 4 4 2 . Peak Build Rating 187 | 8 8 13 28 43 44 46 46 101 101 119 121 127 122 122 109 127 158 155 166 175 175 145 76 105 97 97 112 105 123 108 152 187 Average Rating 100 | 6 8 11 24 35 40 41 43 76 99 114 116 119 121 121 100 116 154 152 159 165 155 105 71 95 90 94 98 93 115 103 124 110 On Entrance 88 | . 8 8 12 27 40 41 41 46 101 101 114 116 122 122 118 100 127 154 149 166 166 98 65 74 88 97 89 91 91 108 102 123 Naked Turns . | . . . . . . . . . . . . . . . . . . . . . . . . . . . . . . . . . Heaviest Build 186 | 14 29 36 51 21 20 20 31 82 82 84 86 122 119 122 92 122 178 178 181 181 186 168 20 28 30 30 44 44 44 31 44 44 Greatest Support 140 | 20 40 40 83 20 20 20 20 108 108 108 92 60 60 60 60 60 80 100 100 80 140 90 21 30 30 30 30 30 45 45 45 44 Greatest Overweight (x) 60 | 1 1 1 . 6 . . 1 15 . . 1 2 1 2 1 3 2 2 2 60 7 6 . . 9 9 1 1 . . . 4 Average Overweight (x) . | . . . . . . . . . . . . 1 1 1 1 1 1 1 1 3 1 . . . . . . . . . . . Largest Inventory Capacity 25 | 8 15 15 15 15 10 10 10 10 10 10 10 20 20 20 20 20 25 25 25 25 25 25 5 15 15 15 15 15 15 15 15 15 Average Capacity 17 | 7 13 15 15 10 10 10 10 9 10 10 10 19 20 20 20 20 22 25 25 25 25 19 5 6 15 15 15 15 15 15 15 11 Most Carried 25 | 8 15 15 15 15 10 10 10 10 10 10 10 18 17 20 20 20 25 25 25 25 25 23 5 15 15 15 15 15 14 11 15 15 Average Carried 16 | 5 12 14 14 9 9 9 9 9 9 9 9 12 17 17 20 19 20 24 24 24 23 16 5 6 14 14 14 14 12 9 14 11 Final Capacity 25 | 8 15 15 15 10 10 10 10 10 10 10 10 20 20 20 20 20 25 25 25 25 25 5 5 15 15 15 15 15 15 15 15 5 Final Carried 25 | 8 15 15 15 10 10 10 10 10 10 10 10 17 17 20 20 18 25 25 25 25 24 5 5 15 15 15 15 15 9 10 15 3 Class Distribution -------------------- 34% | Golem 19% | Scavenger-Golem 18% | Scavenger-Mutant 12% | Mutant 7% | Hacker-Sprinter 3% | Commander-Golem Dominant Class ---------------- Mutant | -10/Materials Scavenger-Mutant | -10/Subcaves Scavenger-Mutant | -8/Materials Hacker-Sprinter | -7/Factory Hacker-Sprinter | -7/Lower Caves Hacker-Sprinter | -7/Lower Caves Hacker-Sprinter | -7/Zion Scavenger-Mutant | -7/Deep Caves Golem | -6/Proximity Caves Golem | -6/Factory Golem | -6/Waste Golem | -6/Factory Golem | -6/Lower Caves Golem | -6/Lower Caves Golem | -6/Data Miner Golem | -5/Proximity Caves Golem | -5/Factory Golem | -5/Extension Scavenger-Golem | -5/Cetus Scavenger-Golem | -5/Archives Scavenger-Golem | -5/Hub_04(d) Scavenger-Golem | -4/Factory Mutant | -4/Waste Mutant | -4/Factory Mutant | -4/Upper Caves Infiltrator-Mutant | -4/Upper Caves Infiltrator-Mutant | -4/Zhirov Hacker-Mutant | -3/Proximity Caves Hacker-Mutant | -3/Research Hacker-Mutant | -2/Research Hacker-Sprinter | -2/Quarantine Hacker-Sprinter | -2/Section 7 Resources | -11 -10 -10 -8 -7 -7 -7 -7 -7 -6 -6 -6 -6 -6 -6 -6 -5 -5 -5 -5 -5 -5 -4 -4 -4 -4 -4 -4 -3 -3 -2 -2 -2 ----------- Run | Yrd Mat Sub Mat Fac Low Low Zio Dee Pro Fac Was Fac Low Low Dat Pro Fac Ext Cet Arc Hub Fac Was Fac Upp Upp Zhi Pro Res Res Qua Sec Matter Collected 6766 | 285 62 373 896 512 134 40 20 594 . . 91 108 382 93 . 516 293 200 155 138 929 138 60 270 101 36 120 70 32 . 87 31 Remotely 67 | . . . 52 . . . . . . . . . . . . . . . . . . 15 . . . . . . . . . . Salvage Created 18193 | 143 65 417 1490 497 27 . . 939 898 . 1399 828 312 . . 833 2212 1376 167 488 4208 349 . 394 . 411 308 17 58 35 291 31 Parts 733 | 18 3 30 76 25 3 . . 14 16 . 25 32 12 . . 25 112 39 9 29 201 15 . 6 . 10 6 2 4 . 17 4 Haulers Intercepted 21 | . 1 . 4 3 . . . . . . . 3 . . . . 3 . . . 3 . . 3 . . . . . . 1 . Recyclers Shooed 9 | . . . 3 . . . . . . . . 1 . . . . 3 . . . 1 . . . . . . . . . . 1 Parts Field Recycled . | . . . . . . . . . . . . . . . . . . . . . . . . . . . . . . . . . Retrieved Matter . | . . . . . . . . . . . . . . . . . . . . . . . . . . . . . . . . . Parts Self-Destructed 64 | . . 6 . . 1 . . . 16 . . . 7 1 . 20 . . . . . . . . . 7 4 2 . . . . Prevented 6 | . . . . . . 3 . . . . . . 2 1 . . . . . . . . . . . . . . . . . . Kills | -11 -10 -10 -8 -7 -7 -7 -7 -7 -6 -6 -6 -6 -6 -6 -6 -5 -5 -5 -5 -5 -5 -4 -4 -4 -4 -4 -4 -3 -3 -2 -2 -2 ------- Run | Yrd Mat Sub Mat Fac Low Low Zio Dee Pro Fac Was Fac Low Low Dat Pro Fac Ext Cet Arc Hub Fac Was Fac Upp Upp Zhi Pro Res Res Qua Sec Combat Hostiles Destroyed 249 | . . 13 19 4 3 . . 42 11 . 5 4 3 . . 24 29 19 2 2 59 8 . . . . . 2 . . . . Melee 2 | . . . . . . . . . . . . . . . . 1 . . . . . . . . . . . 1 . . . . Guns 27 | . . 11 16 . . . . . . . . . . . . . . . . . . . . . . . . . . . . . Cannons 150 | . . . 3 . . . . 5 11 . 5 4 3 . . 14 26 19 2 2 48 8 . . . . . . . . . . AOE 62 | . . 2 . 4 3 . . 32 . . . . . . . 9 3 . . . 9 . . . . . . . . . . . Classes Destroyed 28 | 2 2 3 6 . . . . 4 2 . 1 . 1 . . 3 1 . . . 2 . . . . . . . . . 1 . Worker 17 | . . . 2 3 . . . . . . . 4 . . . . 3 . . . 4 . . . . . . . . . 1 . Builder 15 | . . . 1 1 . . . . . . . 2 . . . . 4 . . . 3 . . . . . . . 1 . 3 . Tunneler 7 | 5 . . 1 1 . . . . . . . . . . . . . . . . . . . . . . . . . . . . Hauler 21 | . 1 . 4 3 . . . . . . . 3 . . . . 3 . . . 3 . . 3 . . . . . . 1 . Recycler 15 | 1 . . 4 2 . . . . . . . 2 . . . . 2 1 . . 3 . . . . . . . . . . . Mechanic 1 | . . . . . . . . . . . . . . . . . . . . . . . . . . . . . . . 1 . Operator 15 | . . . 2 . . . . . . . . . . . . . 1 1 . 9 1 . . . . . . . . . . 1 Drone 4 | . . . . . . . . . . . . . . . . 2 . . . . . . . . . . . 2 . . . . Watcher 20 | . 1 . 3 2 . . . . . . . 1 . . . . 2 1 1 . 2 . . 4 . . . . 1 1 1 . Swarmer 30 | . . 2 5 4 2 . . . . . . . . . . 5 4 . . . 3 5 . . . . . . . . . . Saboteur 1 | . . . . . . . . . . . . . . . . . . . . . 1 . . . . . . . . . . . Grunt 74 | . . . 11 . . . . . 9 . . 4 3 . . 8 10 12 . . 14 3 . . . . . . . . . . Brawler 5 | . . . . . . . . . 1 . . . . . . 2 . 1 . . 1 . . . . . . . . . . . Duelist 7 | . . . 1 . . . . . . . . . . . . 3 . 1 . . 2 . . . . . . . . . . . Protector 5 | . . . . . . . . . . . . . . . . 1 1 . . . 3 . . . . . . . . . . . Sentry 13 | . . 1 1 . 1 . . . . . . . . . . 2 2 2 . 2 2 . . . . . . . . . . . Specialist 3 | . . . . . . . . . . . . . . . . . 2 1 . . . . . . . . . . . . . . Hunter 15 | . . . 1 . . . . . . . . . . . . . 5 2 . . 7 . . . . . . . . . . . Programmer 19 | . . . . . . . . . . . . . . . . 1 5 . . . 13 . . . . . . . . . . . Heavy 1 | . . . . . . . . . . . . . . . . . . . . . 1 . . . . . . . . . . . Behemoth 1 | . . . . . . . . . 1 . . . . . . . . . . . . . . . . . . . . . . . Compactor 5 | . . . . . . . . . . . 5 . . . . . . . . . . . . . . . . . . . . . Cetus Guard 2 | . . . . . . . . . . . . . . . . . . . 2 . . . . . . . . . . . . . Enhanced Grunt 1 | . . . . . . . . 1 . . . . . . . . . . . . . . . . . . . . . . . . Lightning 12 | . . . . . . . . . . . . . . . . . . . . . 12 . . . . . . . . . . . Subdweller 10 | . . 10 . . . . . . . . . . . . . . . . . . . . . . . . . . . . . . Z-Light 1 | . . . . . . . . 1 . . . . . . . . . . . . . . . . . . . . . . . . Samaritan 3 | . . . . . . . . . . . . . 3 . . . . . . . . . . . . . . . . . . . Assembler 2 | . . . . . . . . 2 . . . . . . . . . . . . . . . . . . . . . . . . Assembled 36 | . . . . . . . . 36 . . . . . . . . . . . . . . . . . . . . . . . . Golem 5 | . . . . . . . . 5 . . . . . . . . . . . . . . . . . . . . . . . . Best Kill Streak 35 | 4 1 2 5 6 3 . . 35 3 . 2 9 3 . . 14 5 4 3 3 8 8 . 2 . . . 1 2 1 4 1 Combat Bots Only 33 | . . 2 5 4 3 . . 33 3 . 2 1 3 . . 14 4 4 2 2 7 8 . . . . . 1 . . . . Max Kills in Single Turn 24 | 1 1 2 2 6 1 . . 24 1 . 1 8 1 . . 3 3 2 1 1 2 1 . 1 . . . 1 1 1 1 1 Gunslinging 1 | . . 1 . . . . . . . . . . . . . . . . . . . . . . . . . . . . . . Exploded 24 | . . 2 . 4 1 . . 24 . . . . . . . 3 2 . . . 2 . . . . . . . . . . . Melee 1 | . . . . . . . . . . . . . . . . 1 . . . . . . . . . . . 1 . . . . Uniques/NPCs Destroyed 1 | . . . . . . . . 1 . . . . . . . . . . . . . . . . . . . . . . . . Z-Imprinter (-7/Deep Caves) Combat | -11 -10 -10 -8 -7 -7 -7 -7 -7 -6 -6 -6 -6 -6 -6 -6 -5 -5 -5 -5 -5 -5 -4 -4 -4 -4 -4 -4 -3 -3 -2 -2 -2 -------- Run | Yrd Mat Sub Mat Fac Low Low Zio Dee Pro Fac Was Fac Low Low Dat Pro Fac Ext Cet Arc Hub Fac Was Fac Upp Upp Zhi Pro Res Res Qua Sec Hostile Shots Fired 1984 | . . 51 139 38 18 14 . 46 106 . 9 56 6 . . 110 108 103 12 . 648 104 . 107 . 36 . 5 65 14 14 175 Missed 645 | . . 17 36 20 10 11 . 14 39 . . 9 . . . 36 39 25 2 . 156 32 . 66 . 23 . 2 30 8 11 59 Damage Taken 24550 | . 22 732 1495 183 93 34 . 1006 1248 . 716 730 96 . . 1613 522 788 123 . 9605 1052 . 745 . 205 . 60 739 147 63 2533 Core 3719 | . . 109 204 65 5 . . 194 120 . 32 115 17 . . 129 60 53 . . 831 85 . 238 . 48 . 16 123 28 . 1247 Absorbed by Shields 2494 | . . . . . . . . . . . . 167 . . . . 567 641 130 . 817 165 . . . . . . . 7 . . Reduced by Siege Mode 61 | . . . . . . . . . . . . . . . . . . . . . 61 . . . . . . . . . . . Redirected to Shielding 224 | . . . . . . . . 117 . . . . . . . . . . . . . . . 107 . . . . . . . . Ignored by Resistances 4772 | . . . . . . . . . . . . 3 18 . . 319 219 284 50 . 3785 . . . . . . . . . . 94 Regen/Repaired (Parts) 747 | . . . . 20 . . 168 . . . . . . . . . . . . . . . . . . . . . . . . 559 Core Remaining (%) 61 | 100 . 56 62 . . . . . 45 . . . . . . 65 . . . . 5 . . . . . . 66 90 . . . Volleys Fired 850 | 15 14 56 112 1 11 4 3 37 46 . 39 26 7 7 . 42 75 68 16 27 213 17 . . . . . . . . . 14 Largest 2 | 2 2 2 2 1 1 1 1 2 2 . 2 2 2 2 . 2 2 2 2 2 2 2 . . . . . . . . . 2 Hottest 200 | 70 100 100 140 39 39 30 90 138 50 . 50 50 50 50 . 64 64 50 50 50 80 115 . . . . . . . . . 200 Shots Fired 1568 | 30 26 93 220 1 11 4 3 72 92 . 77 51 17 15 . 79 149 131 32 53 370 25 . . . . . . . . . 17 Gun 298 | 30 24 72 166 . . . . . . . . . . . . . . . . . . . . . . . . . . . . 6 Cannon 1186 | . . . 52 . . 4 3 66 92 . 77 51 17 15 . 57 145 131 32 53 357 25 . . . . . . . . . 9 Launcher 61 | . . 2 2 1 11 . . 6 . . . . . . . 22 4 . . . 13 . . . . . . . . . . . Special 23 | . 2 19 . . . . . . . . . . . . . . . . . . . . . . . . . . . . . 2 Kinetic 258 | 15 24 64 155 . . . . . . . . . . . . . . . . . . . . . . . . . . . . . Thermal 1192 | 15 2 29 63 . . 4 3 38 92 . 77 51 17 15 . 57 145 131 32 53 339 25 . . . . . . . . . 4 Explosive 59 | . . . 2 1 11 . . 6 . . . . . . . 22 4 . . . 13 . . . . . . . . . . . Electromagnetic 51 | . . . . . . . . 28 . . . . . . . . . . . . 18 . . . . . . . . . . 5 Slashing 6 | . . . . . . . . . . . . . . . . . . . . . . . . . . . . . . . . 6 Robot Hit Streak 30 | 8 8 14 15 9 3 . . 6 17 . 30 6 5 . . 19 15 14 13 6 26 14 . . . . . . . . . 16 Robot Miss Streak 8 | 2 6 3 5 . 1 . . 4 2 . 2 4 1 . . 3 3 3 2 5 3 1 . . . . . . . . . 8 Penetration Max 1 | . . . . . . . . . . . . . . . . . . . . . 1 . . . . . . . . . . . Secondary Targets 6 | . . 2 4 . . . . . . . . . . . . . . . . . . . . . . . . . . . . . Max Gunslinging Chain 1 | . . 1 1 . . . . . . . . . . . . . . . . . . . . . . . . . . . . . Shots Hit Robots 1079 | 19 12 54 132 24 3 . . 41 68 . 62 24 10 . . 51 97 86 26 32 271 20 . 8 1 11 7 2 2 1 8 7 Core Hits 570 | 9 5 23 54 14 8 . . 75 20 . 11 17 6 . . 51 57 28 7 17 142 11 . 1 . 5 3 1 1 . 3 1 Critical Kills 2 | . . 1 1 . . . . . . . . . . . . . . . . . . . . . . . . . . . . . Critical Parts Destroyed 3 | . . . . . . . . . . . . . . . . 1 . . . . . . . 1 . . . . . 1 . . Critical Strikes 11 | 1 . 3 1 . . . . . . . . . . . . 1 . . . . 3 . . 1 . . . . . 1 . . Burn 2 | 1 . 1 . . . . . . . . . . . . . . . . . . . . . . . . . . . . . . Destroy 3 | . . 2 1 . . . . . . . . . . . . . . . . . . . . . . . . . . . . . Corrupt 3 | . . . . . . . . . . . . . . . . . . . . . 3 . . . . . . . . . . . Smash 3 | . . . . . . . . . . . . . . . . 1 . . . . . . . 1 . . . . . 1 . . Melee Attacks 156 | . . . 1 41 . 2 1 12 . . . . . . . 2 3 4 . . 2 . . 13 2 11 7 7 7 3 30 8 Impact 65 | . . . . 6 . 2 1 12 . . . . . . . 2 3 . . . 2 . . 13 1 . . 7 7 3 6 . Slashing 86 | . . . 1 35 . . . . . . . . . . . . . . . . . . . . . 11 7 . . . 24 8 Piercing . | . . . . . . . . . . . . . . . . . . . . . . . . . . . . . . . . . Sneak Attacks 31 | . . . . 8 . . . . . . . . . . . . 3 4 . . . . . 4 1 . . 1 2 1 6 1 Combat Hostiles 1 | . . . . . . . . . . . . . . . . . . . . . . . . . . . . 1 . . . . Follow-up Attacks 2 | . . . . . . . . . . . . . . . . . . . . . . . . . . . . . . . 2 . Damage Inflicted 54508 | 212 119 1249 2664 1647 323 . . 4170 3215 . 2894 1911 407 . . 3661 6167 3723 1267 1485 14835 865 . 675 . 825 524 161 190 81 720 518 Guns 3378 | 212 119 1016 1914 . . . . . . . . . . . . . . . . . . . . . . . . . . . . 117 Cannons 36001 | . . . 750 . . . . 877 3215 . 2894 1156 407 . . 1737 4904 3723 1267 1485 12663 842 . . . . . . . . . 81 Explosions 9089 | . . 233 . 320 323 . . 2747 . . . 755 . . . 1874 964 . . . 1873 . . . . . . . . . . . Melee 5769 | . . . . 1327 . . . 546 . . . . . . . 50 299 . . . 51 . . 675 . 825 524 161 190 81 720 320 Ramming 271 | . . . . . . . . . . . . . . . . . . . . . 248 23 . . . . . . . . . . Kinetic 3132 | 74 119 1167 1772 . . . . . . . . . . . . . . . . . . . . . . . . . . . . . Thermal 35539 | 138 . 82 892 . . . . 470 3215 . 2894 1670 407 . . 1737 4904 3723 1267 1485 11732 842 . . . . . . . . . 81 Explosive 8342 | . . . . 320 323 . . 2747 . . . 241 . . . 1874 964 . . . 1873 . . . . . . . . . . . Electromagnetic 1338 | . . . . . . . . 407 . . . . . . . . . . . . 931 . . . . . . . . . . . Impact 2559 | . . . . 259 . . . 546 . . . . . . . 50 299 . . . 51 . . 675 . . . 161 190 81 247 . Slashing 3327 | . . . . 1068 . . . . . . . . . . . . . . . . . . . . . 825 524 . . . 473 437 Piercing . | . . . . . . . . . . . . . . . . . . . . . . . . . . . . . . . . . Highest Corruption 36 | . . . 1 . . . . . . . 35 35 35 35 35 36 3 2 6 6 29 1 1 10 10 10 10 10 2 . . 1 Average Corruption 20 | . . . 1 . . . . . . . 20 35 35 35 35 35 2 1 6 4 18 1 1 5 10 10 6 5 1 . . 1 Corruption Purged 12 | . . . . . . . . . . . . . . . . . 3 2 . 7 . . . . . . . . . . . . Corruption Blocked . | . . . . . . . . . . . . . . . . . . . . . . . . . . . . . . . . . Effects 485 | . . . 7 . . . . . . . 18 59 58 39 8 93 15 . 10 14 117 . 1 11 12 12 7 3 . . . 1 Message Errors 119 | . . . 3 . . . . . . . 4 16 13 14 1 20 4 . 2 1 31 . 1 2 5 1 1 . . . . . Matter Fused 110 | . . . 1 . . . . . . . 4 13 15 6 3 24 3 . 3 4 22 . . 2 3 4 1 1 . . . 1 Heat Flow Errors 54 | . . . . . . . . . . . 1 7 7 4 1 8 2 . 2 2 14 . . 2 1 . 3 . . . . . Energy Discharges 48 | . . . . . . . . . . . 2 7 6 4 1 8 1 . 2 1 10 . . 2 . 3 . 1 . . . . Parts Rejected 3 | . . . . . . . . . . . . 1 . . . . . . . . 2 . . . . . . . . . . . Parts Fused 8 | . . . 1 . . . . . . . . 1 1 . . 1 1 . . . 1 . . . 1 . . 1 . . . . Data Loss (minor) 52 | . . . . . . . . . . . 4 7 4 7 2 12 2 . 1 2 6 . . . 2 1 2 . . . . . Data Loss (major) 26 | . . . 1 . . . . . . . 2 3 3 3 . 5 1 . . 2 3 . . 3 . . . . . . . . Misfires 19 | . . . 1 . . . . . . . . 2 4 1 . 7 . . . . 4 . . . . . . . . . . . Alerts 9 | . . . . . . . . . . . . . 3 . . 5 . . . 1 . . . . . . . . . . . . Misdirections 11 | . . . . . . . . . . . . 1 1 . . . . . . . 6 . . . . 3 . . . . . . Weapon Failures 26 | . . . . . . . . . . . 1 1 1 . . 3 1 . . 1 18 . . . . . . . . . . . Overload Shots 3 | . . . . . . . 3 . . . . . . . . . . . . . . . . . . . . . . . . . Overflow Damage 3610 | . . . 39 313 . . . 377 54 . . 114 59 . . 160 463 244 . 90 568 57 . 231 . 136 133 50 87 81 216 138 Projectiles 1619 | . . . 39 . . . . 89 54 . . 36 59 . . 79 315 244 . 90 536 57 . . . . . . . . . 21 Explosions 223 | . . . . . . . . 109 . . . 78 . . . 31 . . . . 5 . . . . . . . . . . . Melee 1768 | . . . . 313 . . . 179 . . . . . . . 50 148 . . . 27 . . 231 . 136 133 50 87 81 216 117 Knockbacks 11 | . . . . . . . . 1 . . . . . . . . 2 . . . 3 . . 3 . . . . . 1 1 . Impact 10 | . . . . . . . . 1 . . . . . . . . 1 . . . 3 . . 3 . . . . . 1 1 . Kinetic . | . . . . . . . . . . . . . . . . . . . . . . . . . . . . . . . . . Secondary 1 | . . . . . . . . . . . . . . . . . 1 . . . . . . . . . . . . . . . Self-Inflicted Damage 557 | . . . . . 28 . . . . . . . . . . 321 . . . . 208 . . . . . . . . . . . Shots 16 | . . . . . 1 . . . . . . . . . . 9 . . . . 6 . . . . . . . . . . . Rammed 4 | . . . 1 . . . . . . . . . . . . . . . . . 3 . . . . . . . . . . . Targets Rammed 20 | . . . 1 . . . . . . . . . . . . . . . . . 13 6 . . . . . . . . . . Kicked 16 | . . . . . . . . . . . . . . . . . . . . . 10 6 . . . . . . . . . . Crushed . | . . . . . . . . . . . . . . . . . . . . . . . . . . . . . . . . . Highest Temperature 312 | 150 20 . 203 4 7 . 126 223 312 . 48 256 180 207 266 261 199 14 196 121 272 84 . 233 195 . 260 . . . . 240 Average Temperature 80 | 62 12 . 69 2 4 . 64 79 138 . 26 102 76 78 134 83 88 6 99 67 94 36 . 103 100 . 119 . . . . 102 Received Heat Transfer 4274 | . . 96 666 36 24 . . 171 604 . . 264 54 . . 343 107 269 . . 1358 93 . 27 . 21 . 9 78 18 . 36 Effects 2 | . . . . . . . . . . . . 2 . . . . . . . . . . . . . . . . . . . . Interference 2 | . . . . . . . . . . . . 2 . . . . . . . . . . . . . . . . . . . . Siege Activations 3 | . . . . . . . . . . . . . . . . . . . 1 . 2 . . . . . . . . . . . Total Turns 76 | . . . . . . . . . . . . . . . . . . . 1 . 75 . . . . . . . . . . . Longest Duration 43 | . . . . . . . . . . . . . . . . . . . 1 . 43 . . . . . . . . . . . Robots Corrupted 19 | . . . . 1 . . . 5 . . . . . . . . 2 . . . 4 . . 5 . . . 1 . 1 . . Combat Hostiles 8 | . . . . . . . . 5 . . . . . . . . . . . . 2 . . . . . . 1 . . . . Parts Fried 40 | . . . . 3 . . . 1 . . . . . . . 1 5 . . . 14 . . 8 . . . 1 2 3 2 . Impact Corruptions 39 | . . . . 5 . . . 5 . . . . . . . 2 6 . . . 2 . . 10 . . . 2 2 2 3 . Robots Melted . | . . . . . . . . . . . . . . . . . . . . . . . . . . . . . . . . . Combat Hostiles . | . . . . . . . . . . . . . . . . . . . . . . . . . . . . . . . . . Parts Melted 23 | 2 . . 2 . . . . 1 2 . . 2 . . . 1 3 . . 2 6 2 . . . . . . . . . . Heat Transferred 20485 | 481 . 284 1174 . . . . 479 1700 . 1625 1025 225 . . 909 2373 2125 700 875 5711 725 . . . . . . . . . 74 Parts Sabotaged . | . . . . . . . . . . . . . . . . . . . . . . . . . . . . . . . . . Parts Stolen . | . . . . . . . . . . . . . . . . . . . . . . . . . . . . . . . . . Parts Stripped . | . . . . . . . . . . . . . . . . . . . . . . . . . . . . . . . . . Power Chain Reactions . | . . . . . . . . . . . . . . . . . . . . . . . . . . . . . . . . . Alert | -11 -10 -10 -8 -7 -7 -7 -7 -7 -6 -6 -6 -6 -6 -6 -6 -5 -5 -5 -5 -5 -5 -4 -4 -4 -4 -4 -4 -3 -3 -2 -2 -2 ------- Run | Yrd Mat Sub Mat Fac Low Low Zio Dee Pro Fac Was Fac Low Low Dat Pro Fac Ext Cet Arc Hub Fac Was Fac Upp Upp Zhi Pro Res Res Qua Sec Peak Influence 1643 | 30 89 . 490 466 . . . . . 46 19 481 . . . . 727 818 678 448 1643 1266 439 637 . . . . 268 262 286 1600 Initial 1100 | . 19 . . 221 . . . . . 32 16 2 . . . . 308 355 441 191 . 1100 439 307 . . . . 156 139 147 160 Average 331 | 14 38 . 105 302 . . . . . 36 4 264 . . . . 437 539 549 81 721 1176 439 459 . . . . 207 168 209 284 Maximum Alert Level 5 | . . . 2 2 . . . . . . . 2 . . . . 3 3 2 2 5 4 2 2 . . . . 1 1 1 5 Low Security (%) 42 | 100 100 . 84 5 . . . . . 100 100 36 . . . . 8 . . 79 17 . . . . . . . 38 84 51 12 Level 1 21 | . . . 6 79 . . . . . . . 32 . . . . 26 18 . 14 16 . . 32 . . . . 61 15 48 85 Level 2 25 | . . . 9 14 . . . . . . . 31 . . . . 62 66 100 5 22 . 100 67 . . . . . . . . Level 3 4 | . . . . . . . . . . . . . . . . . 2 15 . . 17 . . . . . . . . . . . Level 4 5 | . . . . . . . . . . . . . . . . . . . . . 22 100 . . . . . . . . . . Level 5 . | . . . . . . . . . . . . . . . . . . . . . . . . . . . . . . . . . High Security . | . . . . . . . . . . . . . . . . . . . . . 3 . . . . . . . . . . . Max Security . | . . . . . . . . . . . . . . . . . . . . . . . . . . . . . . . . 2 Squads Dispatched 65 | . 1 . 4 3 . . . . . . . 3 . . . 1 7 3 . . 21 4 . 1 . . . . 1 1 2 13 Investigation 3 | . 1 . . 1 . . . . . . . . . . . . 1 . . . . . . . . . . . . . . . Extermination 13 | . . . . 1 . . . . . . . 1 . . . . 2 . . . 7 1 . . . . . . . . . 1 Reinforcement 24 | . . . 1 1 . . . . . . . 1 . . . . 3 1 . . 8 1 . 1 . . . . 1 1 2 3 Assault 17 | . . . 1 . . . . . . . . 1 . . . 1 1 2 . . 3 2 . . . . . . . . . 6 Garrison 5 | . . . 2 . . . . . . . . . . . . . . . . . 3 . . . . . . . . . . . Intercept 3 | . . . . . . . . . . . . . . . . . . . . . . . . . . . . . . . . 3 Searches Triggered 2 | . . . . . . . . . . . . . . . . . 1 . . . . . . 1 . . . . . . . . Construction Impeded 3 | . . . . . . . . . . . . . . . . . 1 . . . 2 . . . . . . . . . . . Haulers Reinforced 2 | . . . . . . . . . . . . 1 . . . . . . . . 1 . . . . . . . . . . . Active Scanning Responses . | . . . . . . . . . . . . . . . . . . . . . . . . . . . . . . . . . Cargo Convoy Interrupts 1 | . . . . . . . . . . . . . . . . . 1 . . . . . . . . . . . . . . . Stealth | -11 -10 -10 -8 -7 -7 -7 -7 -7 -6 -6 -6 -6 -6 -6 -6 -5 -5 -5 -5 -5 -5 -4 -4 -4 -4 -4 -4 -3 -3 -2 -2 -2 --------- Run | Yrd Mat Sub Mat Fac Low Low Zio Dee Pro Fac Was Fac Low Low Dat Pro Fac Ext Cet Arc Hub Fac Was Fac Upp Upp Zhi Pro Res Res Qua Sec Distress Signals 20 | . . . 2 4 . . . . . . . . . . . . 1 2 2 . 6 . . . . . . . 1 . . 2 Communications Jammed 51 | . . . . . . . . . . . . . . . . . . . . . 8 . . 30 . . . . . 2 . 11 Distress Signals 51 | . . . . . . . . . . . . . . . . . . . . . 8 . . 30 . . . . . 2 . 11 Times Spotted 553 | . 3 14 40 34 1 7 . 57 13 . 5 7 2 . . 24 42 36 8 19 99 17 . 42 . 14 . 6 23 10 9 21 Peak Tracking Total 37 | . 2 2 9 6 1 2 . 37 4 . 2 3 1 . . 8 5 10 5 2 9 9 . 17 . 8 . 4 11 7 3 12 Tactical Retreats 56 | . . . 3 11 . 4 . 1 2 . . . . . . 1 2 5 . . 5 2 . 9 . 5 . . 2 1 1 2 Traps | -11 -10 -10 -8 -7 -7 -7 -7 -7 -6 -6 -6 -6 -6 -6 -6 -5 -5 -5 -5 -5 -5 -4 -4 -4 -4 -4 -4 -3 -3 -2 -2 -2 ------- Run | Yrd Mat Sub Mat Fac Low Low Zio Dee Pro Fac Was Fac Low Low Dat Pro Fac Ext Cet Arc Hub Fac Was Fac Upp Upp Zhi Pro Res Res Qua Sec Traps Triggered 13 | . 1 . 1 1 . . . . . 1 . 2 . . . . . . . . 2 1 . 1 . . . . . 1 1 1 Indirectly . | . . . . . . . . . . . . . . . . . . . . . . . . . . . . . . . . . Trap Hack Attempts . | . . . . . . . . . . . . . . . . . . . . . . . . . . . . . . . . . Triggered . | . . . . . . . . . . . . . . . . . . . . . . . . . . . . . . . . . Disarmed . | . . . . . . . . . . . . . . . . . . . . . . . . . . . . . . . . . Reprogrammed 6 | . . . . 6 . . . . . . . . . . . . . . . . . . . . . . . . . . . . Reused . | . . . . . . . . . . . . . . . . . . . . . . . . . . . . . . . . . Traps Extracted . | . . . . . . . . . . . . . . . . . . . . . . . . . . . . . . . . . Installed . | . . . . . . . . . . . . . . . . . . . . . . . . . . . . . . . . . Triggered 7 | . . . . . . 2 . . . . . . 3 . . . 2 . . . . . . . . . . . . . . . Machines | -11 -10 -10 -8 -7 -7 -7 -7 -7 -6 -6 -6 -6 -6 -6 -6 -5 -5 -5 -5 -5 -5 -4 -4 -4 -4 -4 -4 -3 -3 -2 -2 -2 ---------- Run | Yrd Mat Sub Mat Fac Low Low Zio Dee Pro Fac Was Fac Low Low Dat Pro Fac Ext Cet Arc Hub Fac Was Fac Upp Upp Zhi Pro Res Res Qua Sec Machines Disabled 58 | . . 1 3 . . . 3 2 . . . 23 . . . 1 5 . . 1 7 1 . . 1 . . . . . 3 7 Max in Single Turn 21 | . . 1 1 . . . 1 1 . . . 21 . . . 1 4 . . 1 1 1 . . 1 . . . . . 1 1 Garrison Access 7 | . . . 1 3 . . . . . . . 1 . . . . . . . . . . . 1 . . . . 1 . . . Network Hub 4 | . . . . . . . . . . . . . . . . . . . . . 4 . . . . . . . . . . . Machines Repaired . | . . . . . . . . . . . . . . . . . . . . . . . . . . . . . . . . . Machines Dismantled 2 | . . . . . . . . . . . . . . . . . . . . . 2 . . . . . . . . . . . Machines Sabotaged . | . . . . . . . . . . . . . . . . . . . . . . . . . . . . . . . . . Overloaded Fab Kills . | . . . . . . . . . . . . . . . . . . . . . . . . . . . . . . . . . Hacking | -11 -10 -10 -8 -7 -7 -7 -7 -7 -6 -6 -6 -6 -6 -6 -6 -5 -5 -5 -5 -5 -5 -4 -4 -4 -4 -4 -4 -3 -3 -2 -2 -2 --------- Run | Yrd Mat Sub Mat Fac Low Low Zio Dee Pro Fac Was Fac Low Low Dat Pro Fac Ext Cet Arc Hub Fac Was Fac Upp Upp Zhi Pro Res Res Qua Sec Machines Accessed 83 | . 7 2 8 20 1 . . . 1 1 . 3 1 . 4 . 7 1 1 1 4 1 . 6 . . 4 . 2 . 6 2 Terminals 52 | . 6 . 6 13 . . . . 1 1 . 1 . . . . 5 1 1 . 4 1 . 4 . . . . . . 6 2 Fabricators 2 | . . . . 1 . . . . . . . . . . . . 1 . . . . . . . . . . . . . . . Repair Stations 1 | . . . . 1 . . . . . . . . . . . . . . . . . . . . . . . . . . . . Recycling Units 6 | . 1 . . 1 . . . . . . . 1 . . . . 1 . . . . . . 1 . . . . 1 . . . Scanalyzers 2 | . . . 1 1 . . . . . . . . . . . . . . . . . . . . . . . . . . . . Garrison Access 7 | . . . 1 3 . . . . . . . 1 . . . . . . . . . . . 1 . . . . 1 . . . Total Hacks 344 | . 25 5 22 74 1 . . . 1 2 . 9 1 . 34 . 13 2 1 25 10 2 . 28 . . 16 . 10 . 44 19 Successful 224 | . 15 5 13 45 1 . . . 1 1 . 3 1 . 34 . 8 . . 25 4 . . 12 . . 16 . 2 . 24 14 Failed 120 | . 10 . 9 29 . . . . . 1 . 6 . . . . 5 2 1 . 6 2 . 16 . . . . 8 . 20 5 Catastrophic 23 | . 1 . . 2 . . . . . . . 2 . . . . 1 . 1 . 2 2 . 9 . . . . 1 . 1 1 Database Lockouts . | . . . . . . . . . . . . . . . . . . . . . . . . . . . . . . . . . Manual 126 | . 16 . 10 37 . . 1 . . 2 . 2 . . . . 5 . 1 . 7 2 . 18 1 . . . 2 . 17 5 Terminals 206 | . 22 . 13 54 . . . . 1 2 . 4 . . . . 10 2 1 . 10 2 . 22 . . . . . . 44 19 Fabricators 2 | . . . . 1 . . . . . . . . . . . . 1 . . . . . . . . . . . . . . . Repair Stations 4 | . . . . 4 . . . . . . . . . . . . . . . . . . . . . . . . . . . . Recycling Units 27 | . 3 . . 7 . . . . . . . 3 . . . . 2 . . . . . . 5 . . . . 7 . . . Scanalyzers 10 | . . . 8 2 . . . . . . . . . . . . . . . . . . . . . . . . . . . . Garrison Access 13 | . . . 1 6 . . . . . . . 2 . . . . . . . . . . . 1 . . . . 3 . . . Terminal Hacks 151 | . 6 5 1 22 1 . . . 1 . . 2 1 . 34 . 3 . . 25 2 . . 5 . . 16 . . . 16 11 Record 48 | . . 4 . . . . . . 1 . . . . . 11 . . . . 25 . . . 1 . . 5 . . . 1 . Part Schematic 21 | . . . . 3 . . . . . . . . . . 12 . . . . . . . . . . . 3 . . . 3 . Robot Schematic 8 | . . . . . . . . . . . . . . . 8 . . . . . . . . . . . . . . . . . Robot Analysis 6 | . 1 . . . . . . . . . . . . . . . . . . . . . . . . . 4 . . . . 1 Prototype ID Bank 11 | . 1 . 1 1 . . . . . . . . . . 3 . . . . . . . . . . . 4 . . . 1 . Open Door 2 | . . . . . 1 . . . . . . . 1 . . . . . . . . . . . . . . . . . . . Level Access Points 1 | . . . . . . . . . . . . . . . . . . . . . . . . . . . . . . . . 1 Branch Access Points 6 | . . . . 1 . . . . . . . 1 . . . . 1 . . . . . . 1 . . . . . . 1 1 Emergency Access Points 6 | . 1 . . 2 . . . . . . . . . . . . 1 . . . 1 . . . . . . . . . 1 . Machine Index 2 | . . . . . . . . . . . . . . . . . . . . . . . . . . . . . . . 1 1 Terminal Index 2 | . . . . 1 . . . . . . . . . . . . . . . . . . . . . . . . . . . 1 Recycling Unit Index 1 | . . . . 1 . . . . . . . . . . . . . . . . . . . . . . . . . . . . Scanalyzer Index 2 | . . . . 1 . . . . . . . . . . . . . . . . . . . . . . . . . . . 1 Garrison Index 2 | . . . . . . . . . . . . . . . . . . . . . . . . . . . . . . . 1 1 Alert Level 6 | . . . . 2 . . . . . . . . . . . . . . . . 1 . . 1 . . . . . . 1 1 Unreport Threat 4 | . . . . . . . . . . . . . . . . . . . . . . . . 2 . . . . . . 1 1 Locate Traps 4 | . 1 . . 3 . . . . . . . . . . . . . . . . . . . . . . . . . . . . Reprogram Traps 1 | . . . . 1 . . . . . . . . . . . . . . . . . . . . . . . . . . . . Patrol Status 2 | . . . . 1 . . . . . . . . . . . . . . . . . . . . . . . . . . 1 . Recall Extermination 1 | . . . . 1 . . . . . . . . . . . . . . . . . . . . . . . . . . . . Recall Reinforcements 1 | . . . . . . . . . . . . . . . . . . . . . . . . . . . . . . . . 1 Hauler Manifests 5 | . . . . 2 . . . . . . . 1 . . . . 1 . . . . . . . . . . . . . 1 . Registered Components 2 | . . . . . . . . . . . . . . . . . . . . . . . . . . . . . . . 1 1 Zone Layout 6 | . 2 . . 2 . . . . . . . . . . . . . . . . . . . . . . . . . . 2 . Derelict Proto ID Bank 1 | . . 1 . . . . . . . . . . . . . . . . . . . . . . . . . . . . . . Fabricator Hacks 2 | . . . . 1 . . . . . . . . . . . . 1 . . . . . . . . . . . . . . . Network Status 2 | . . . . 1 . . . . . . . . . . . . 1 . . . . . . . . . . . . . . . Repair Station Hacks 2 | . . . . 2 . . . . . . . . . . . . . . . . . . . . . . . . . . . . Scan Component 1 | . . . . 1 . . . . . . . . . . . . . . . . . . . . . . . . . . . . Repair 1 | . . . . 1 . . . . . . . . . . . . . . . . . . . . . . . . . . . . Recycling Unit Hacks 4 | . 1 . . . . . . . . . . . . . . . 1 . . . . . . 1 . . . . 1 . . . Retrieve Components 4 | . 1 . . . . . . . . . . . . . . . 1 . . . . . . 1 . . . . 1 . . . Scanalyzer 8 | . . . 7 1 . . . . . . . . . . . . . . . . . . . . . . . . . . . . Insert Component 4 | . . . 3 1 . . . . . . . . . . . . . . . . . . . . . . . . . . . . Analyze 4 | . . . 4 . . . . . . . . . . . . . . . . . . . . . . . . . . . . . Garrison Access Hacks 6 | . . . 1 3 . . . . . . . . . . . . . . . . . . . 1 . . . . 1 . . . Seal Access 6 | . . . 1 3 . . . . . . . . . . . . . . . . . . . 1 . . . . 1 . . . Unauthorized Hacks 51 | . 8 . 4 16 . . . . . 1 . 1 . . . . 3 . . . 2 . . 5 . . . . . . 8 3 Terminals 43 | . 7 . 4 13 . . . . . 1 . 1 . . . . 2 . . . 2 . . 2 . . . . . . 8 3 Track 1 | . . . . . . . . . . . . . . . . . . . . . . . . . . . . . . . 1 . Assimilate 4 | . . . . 1 . . . . . . . . . . . . 1 . . . 1 . . . . . . . . . . 1 Botnet 20 | . 1 . 2 6 . . . . . 1 . 1 . . . . 1 . . . 1 . . 2 . . . . . . 4 1 Disrupt 1 | . . . . . . . . . . . . . . . . . . . . . . . . . . . . . . . 1 . Operators 3 | . 1 . . 1 . . . . . . . . . . . . . . . . . . . . . . . . . . 1 . Skim 14 | . 5 . 2 5 . . . . . . . . . . . . . . . . . . . . . . . . . . 1 1 Fabricators . | . . . . . . . . . . . . . . . . . . . . . . . . . . . . . . . . . Repair Stations . | . . . . . . . . . . . . . . . . . . . . . . . . . . . . . . . . . Recycling Units 8 | . 1 . . 3 . . . . . . . . . . . . 1 . . . . . . 3 . . . . . . . . Reject 2 | . . . . 1 . . . . . . . . . . . . . . . . . . . 1 . . . . . . . . Recyclers 2 | . . . . 1 . . . . . . . . . . . . . . . . . . . 1 . . . . . . . . Mask 2 | . . . . 1 . . . . . . . . . . . . . . . . . . . 1 . . . . . . . . Tunnel 2 | . 1 . . . . . . . . . . . . . . . 1 . . . . . . . . . . . . . . . Scanalyzers . | . . . . . . . . . . . . . . . . . . . . . . . . . . . . . . . . . Garrison Access . | . . . . . . . . . . . . . . . . . . . . . . . . . . . . . . . . . Data Cores Recovered 3 | . . . 1 . . . . . . . . . . . . . 1 1 . . . . . . . . . . . . . . Used . | . . . . . . . . . . . . . . . . . . . . . . . . . . . . . . . . . Hacking Detections 54 | . 5 . 7 15 . . . . . 1 . 3 . . . . 5 1 . . 4 1 . 5 . . . . 1 . 4 2 Full Trace Events 1 | . . . . 1 . . . . . . . . . . . . . . . . . . . . . . . . . . . . Feedback Events . | . . . . . . . . . . . . . . . . . . . . . . . . . . . . . . . . . Feedback Blocked . | . . . . . . . . . . . . . . . . . . . . . . . . . . . . . . . . . Robot Schematics Acquired 12 | . . . . . . . 4 . . . . . . . 8 . . . . . . . . . . . . . . . . . Robots Built . | . . . . . . . . . . . . . . . . . . . . . . . . . . . . . . . . . Authchips . | . . . . . . . . . . . . . . . . . . . . . . . . . . . . . . . . . Time . | . . . . . . . . . . . . . . . . . . . . . . . . . . . . . . . . . Total Robot Build Rating . | . . . . . . . . . . . . . . . . . . . . . . . . . . . . . . . . . Part Schematics Acquired 37 | . . . 3 3 . . 13 . . . . . . . 12 . . . . . . . . . . . 3 . . . 3 . Parts Built . | . . . . . . . . . . . . . . . . . . . . . . . . . . . . . . . . . Authchips . | . . . . . . . . . . . . . . . . . . . . . . . . . . . . . . . . . Time . | . . . . . . . . . . . . . . . . . . . . . . . . . . . . . . . . . Total Part Build Rating . | . . . . . . . . . . . . . . . . . . . . . . . . . . . . . . . . . Parts Repaired 1 | . . . . 1 . . . . . . . . . . . . . . . . . . . . . . . . . . . . Time 30 | . . . . 30 . . . . . . . . . . . . . . . . . . . . . . . . . . . . Parts Recycled . | . . . . . . . . . . . . . . . . . . . . . . . . . . . . . . . . . Recycled Matter . | . . . . . . . . . . . . . . . . . . . . . . . . . . . . . . . . . Retrieved Matter . | . . . . . . . . . . . . . . . . . . . . . . . . . . . . . . . . . Retrieved Components 7 | . 2 . . . . . . . . . . . . . . . . . . . . . . 2 . . . . 3 . . . Parts Scanalyzed 4 | . . . 3 1 . . . . . . . . . . . . . . . . . . . . . . . . . . . . Part Schematics Acquired 3 | . . . 3 . . . . . . . . . . . . . . . . . . . . . . . . . . . . . Parts Damaged . | . . . . . . . . . . . . . . . . . . . . . . . . . . . . . . . . . Bothacking | -11 -10 -10 -8 -7 -7 -7 -7 -7 -6 -6 -6 -6 -6 -6 -6 -5 -5 -5 -5 -5 -5 -4 -4 -4 -4 -4 -4 -3 -3 -2 -2 -2 ------------ Run | Yrd Mat Sub Mat Fac Low Low Zio Dee Pro Fac Was Fac Low Low Dat Pro Fac Ext Cet Arc Hub Fac Was Fac Upp Upp Zhi Pro Res Res Qua Sec Used RIF Installer . | . . . . . . . . . . . . . . . . . . . . . . . . . . . . . . . . . Robots Hacked 1 | . . . . . . . . . . . . . . . . . . . . . . . . . 1 . . . . . . . Non-combat 1 | . . . . . . . . . . . . . . . . . . . . . . . . . 1 . . . . . . . Combat . | . . . . . . . . . . . . . . . . . . . . . . . . . . . . . . . . . Robot Hacks Applied 1 | . . . . . . . . . . . . . . . . . . . . . . . . . 1 . . . . . . . parse_system 1 | . . . . . . . . . . . . . . . . . . . . . . . . . 1 . . . . . . . Relay Couplers Released 4 | . . . . . . . . . . . . 1 . . . . . . . . 3 . . . . . . . . . . . Machine Destruction 1 | . . . . . . . . . . . . 1 . . . . . . . . . . . . . . . . . . . . Programmers 3 | . . . . . . . . . . . . . . . . . . . . . 3 . . . . . . . . . . . Fabnet Peak Effective % . | . . . . . . . . . . . . . . . . . . . . . . . . . . . . . . . . . Robots Rewired 17 | . . . . . . . . . . . . . . . . . . 17 . . . . . . . . . . . . . . Allies Hacked 1 | . . . . . . . . . . . . . . . . . . 1 . . . . . . . . . . . . . . Hacks Repelled . | . . . . . . . . . . . . . . . . . . . . . . . . . . . . . . . . . Allies | -11 -10 -10 -8 -7 -7 -7 -7 -7 -6 -6 -6 -6 -6 -6 -6 -5 -5 -5 -5 -5 -5 -4 -4 -4 -4 -4 -4 -3 -3 -2 -2 -2 -------- Run | Yrd Mat Sub Mat Fac Low Low Zio Dee Pro Fac Was Fac Low Low Dat Pro Fac Ext Cet Arc Hub Fac Was Fac Upp Upp Zhi Pro Res Res Qua Sec Total Allies 32 | . . . . 1 . . 2 . . . . . . . . . 1 22 5 . . . . . . . . . . . . 1 Largest Group 16 | . . . . 1 1 1 2 2 . . . . . . . . 1 16 5 5 4 . . . . . . . . . . 1 Highest-Rated Group 582 | . . . . 10 10 10 192 192 . . . . . . . . 10 582 533 533 384 . . . . . . . . . . 26 Highest-Rated Ally 159 | . . . . 10 10 10 96 96 . . . . . . . . 10 159 152 149 96 . . . . . . . . . . 26 Total Orders 2 | . . . . . . . . . . . . . . . . . . . . 2 . . . . . . . . . . . . STAY 1 | . . . . . . . . . . . . . . . . . . . . 1 . . . . . . . . . . . . FOLLOW 1 | . . . . . . . . . . . . . . . . . . . . 1 . . . . . . . . . . . . Ally Attacks 319 | . . . . . . . . 59 . . . . . . . . . 144 37 23 56 . . . . . . . . . . . Total Damage 9238 | . . . . . . . . 1791 . . . . . . . . . 3061 1750 894 1742 . . . . . . . . . . . Kills 47 | . . . . . . . . 15 . . . . . . . . . 14 7 2 9 . . . . . . . . . . . Allies Corrupted 6 | . . . . . . . . 1 . . . . . . . . . 3 . . 2 . . . . . . . . . . . Allies Melted . | . . . . . . . . . . . . . . . . . . . . . . . . . . . . . . . . . Intel | -11 -10 -10 -8 -7 -7 -7 -7 -7 -6 -6 -6 -6 -6 -6 -6 -5 -5 -5 -5 -5 -5 -4 -4 -4 -4 -4 -4 -3 -3 -2 -2 -2 ------- Run | Yrd Mat Sub Mat Fac Low Low Zio Dee Pro Fac Was Fac Low Low Dat Pro Fac Ext Cet Arc Hub Fac Was Fac Upp Upp Zhi Pro Res Res Qua Sec Robot Analysis Total 6 | . 1 . . . . . . . . . . . . . . . . . . . . . . . . . 4 . . . . 1 Derelict Logs Recovered 17 | . . 2 . . 2 2 2 . 2 . . . 2 2 . 1 . . . . . . . . 1 1 . . . . . . Drone Launches . | . . . . . . . . . . . . . . . . . . . . . . . . . . . . . . . . . Drone Recoveries . | . . . . . . . . . . . . . . . . . . . . . . . . . . . . . . . . . Exploration | -11 -10 -10 -8 -7 -7 -7 -7 -7 -6 -6 -6 -6 -6 -6 -6 -5 -5 -5 -5 -5 -5 -4 -4 -4 -4 -4 -4 -3 -3 -2 -2 -2 ------------- Run | Yrd Mat Sub Mat Fac Low Low Zio Dee Pro Fac Was Fac Low Low Dat Pro Fac Ext Cet Arc Hub Fac Was Fac Upp Upp Zhi Pro Res Res Qua Sec Turns Passed 31406 | 140 626 2500 2471 1319 184 198 560 3592 1565 117 339 1124 1071 711 153 1728 1749 1481 419 3847 2881 316 189 570 263 303 195 113 98 63 261 260 Spaces Moved 20762 | 97 437 1362 1062 3085 531 475 1271 2180 686 83 119 508 374 377 85 567 705 462 153 370 955 300 516 1241 465 585 186 206 193 129 510 487 Core 100 | 3 . . . 1 . . . 1 . . . . . . . . . . . 10 . . . . 2 1 . . . . . 82 Treads 2507 | . 1 1362 1062 . . . . . . . 13 . . . . . . . . 46 23 . . . . . . . . . . . Legs 7352 | . . . . . . . . 1924 686 83 106 508 374 377 85 567 705 462 153 314 932 76 . . . . . . . . . . Wheels 530 | 94 436 . . . . . . . . . . . . . . . . . . . . . . . . . . . . . . . Hover . | . . . . . . . . . . . . . . . . . . . . . . . . . . . . . . . . . Flight 10230 | . . . . 3084 531 475 1271 255 . . . . . . . . . . . . . 224 516 1241 463 584 186 206 193 129 510 362 Fastest Speed 26 | 50 80 160 160 28 28 28 28 96 130 130 135 180 180 180 180 180 183 185 183 226 170 30 34 34 37 37 37 37 34 34 26 26 Average Speed 102 | 79 90 160 160 29 28 28 41 115 130 131 176 181 180 182 180 203 205 224 216 320 219 71 34 34 38 37 78 40 34 34 26 30 Slowest Speed 3050 | 100 160 240 160 350 28 28 96 800 130 135 240 210 180 210 180 240 226 226 226 3050 720 520 34 37 500 500 117 117 34 34 34 50 Overloaded Moves . | . . . . . . . . . . . . . . . . . . . . . . . . . . . . . . . . . Propulsion Burnouts . | . . . . . . . . . . . . . . . . . . . . . . . . . . . . . . . . . Robots Hopped 47 | . . . . 15 . . . . . . . . . . . . . . . . . 2 . 21 . 3 . . 1 1 1 3 Cave-ins Triggered 1 | . . . . . . . . . . . 1 . . . . . . . . . . . . . . . . . . . . . Teleports 1 | . . . . . . . . . . . . . . . . . . . . . . . . . . . . . . . . 1 Spacefolds 16 | . . . . . . . . . . . . . . . . . . . . . . . . . . . . . . . . 16 Exploration Rate (%) 54 | 4 66 76 53 68 68 71 86 75 84 4 71 19 54 60 71 69 22 65 55 97 73 9 97 33 51 88 61 35 14 7 64 39 Regions Visited 32 Branch Regions 20 Pre-discovered Areas 12 | . 1 1 . 1 . . . . 1 . . . . 2 1 . 1 . . . . . . . 1 . 3 . . . . . Known Exits Taken 19 | . 1 . 1 1 1 1 1 1 1 . . 1 . . . 1 1 1 1 1 1 . . 1 . . . . 1 1 1 . Unknown Exits Taken 9 | 1 . 1 . . . . . . . . . . 1 1 1 . . . . . . . . . 1 1 1 1 . . . . Scrap Searched 35 | . . 12 . . 4 2 2 . 2 . . . . 6 . 2 . . . . . . . . 2 1 . 2 . . . . Spaces Dug 170 | . 1 . 42 6 . 5 . 8 4 . 6 2 . 8 . 34 3 15 . . 9 . . 3 . . . . 5 2 15 2 Terrain Destroyed 726 | . 1 26 63 15 43 5 . 12 21 . 9 25 7 15 . 207 65 44 4 13 119 3 . 3 . . . . 5 2 15 4 Melee 36 | . . . 1 6 . 2 . . . . . . . . . . . . . . . . . 3 . . . . 5 2 15 2 Projectile 280 | . 1 . 22 . . 3 . 12 21 . 9 10 7 15 . 17 35 44 4 13 62 3 . . . . . . . . . 2 AOE 410 | . . 26 40 9 43 . . . . . . 15 . . . 190 30 . . . 57 . . . . . . . . . . . Terrain Rammed . | . . . . . . . . . . . . . . . . . . . . . . . . . . . . . . . . . Walls Destroyed . | . . . . . . . . . . . . . . . . . . . . . . . . . . . . . . . . . Machines Disabled . | . . . . . . . . . . . . . . . . . . . . . . . . . . . . . . . . . Actions | -11 -10 -10 -8 -7 -7 -7 -7 -7 -6 -6 -6 -6 -6 -6 -6 -5 -5 -5 -5 -5 -5 -4 -4 -4 -4 -4 -4 -3 -3 -2 -2 -2 --------- Run | Yrd Mat Sub Mat Fac Low Low Zio Dee Pro Fac Was Fac Low Low Dat Pro Fac Ext Cet Arc Hub Fac Was Fac Upp Upp Zhi Pro Res Res Qua Sec Total 29015 | 132 643 1553 1637 3405 552 531 1302 3164 1270 91 171 665 760 389 86 1059 855 794 220 2999 1378 379 528 1337 546 652 229 223 210 141 578 536 Wait 6033 | 2 171 80 373 175 8 49 19 785 532 . 1 91 376 . . 430 26 71 20 2568 59 3 . 46 69 58 4 . . 2 6 9 Move 20619 | 96 436 1361 1061 3056 530 474 1270 2179 685 83 118 507 373 376 84 566 704 461 152 369 954 296 515 1203 464 579 185 205 190 126 507 454 Hop 39 | . . . . 13 . . . . . . . . . . . . . . . . . 2 . 16 . 2 . . 1 1 1 3 Pick Up 233 | 10 10 19 21 16 . . 1 35 1 3 2 8 . 3 . . 17 10 6 4 29 7 . 8 5 . 3 1 3 2 6 3 Fast Attach 189 | 7 . . 8 11 . . 1 24 . . 4 4 . 1 . 1 6 11 6 9 17 8 7 23 . . 11 3 2 . 17 8 Attach 102 | . . 3 6 13 1 1 2 10 . . 1 1 . . . 2 4 1 1 1 13 13 . 3 3 1 3 1 6 1 3 8 Detach 56 | . . . 2 11 1 1 1 2 . . . 2 . . . 4 2 2 1 . 12 1 . 3 . 1 3 2 . . 2 3 Swap 137 | . 8 17 22 15 1 . 2 14 . 3 . 3 . . . 4 5 12 3 . 20 1 . 3 . . . . . . . 4 Drop 407 | 2 4 17 30 31 . . 2 66 6 2 6 13 4 2 2 8 13 24 15 21 39 23 6 19 3 . 13 4 1 1 10 20 Fire 850 | 15 14 56 112 1 11 4 3 37 46 . 39 26 7 7 . 42 75 68 16 27 213 17 . . . . . . . . . 14 Melee 152 | . . . 1 41 . 2 1 12 . . . . . . . 2 3 4 . . 2 . . 13 2 11 7 7 7 3 26 8 Ram 1 | . . . . . . . . . . . . . . . . . . . . . 1 . . . . . . . . . . . Kick 16 | . . . . . . . . . . . . . . . . . . . . . 10 6 . . . . . . . . . . Crush 4 | . . . 1 . . . . . . . . . . . . . . . . . 3 . . . . . . . . . . . Escape Stasis 35 | . . . . 18 . . . . . . . 10 . . . . . . . . . . . . . . . . . 5 . 2 Rewire 130 | . . . . . . . . . . . . . . . . . . 130 . . . . . . . . . . . . . . Trap . | . . . . . . . . . . . . . . . . . . . . . . . . . . . . . . . . . Miscellaneous 12 | . . . . 4 . . . . . . . . . . . . . . . . 6 2 . . . . . . . . . . Route ------- -11/Scrapyard -10/Materials (discovered 4 exits: [*Mat x2] / *Min / *Sub) -10/Subcaves (discovered 2 exits: *Mat x2) -8/Materials (discovered 2 exits: *Fac x2) -7/Factory (discovered 6 exits: *Fac x4 / *Low x2) -7/Lower Caves -7/Lower Caves (discovered 2 exits: *Fac / *Zio) -7/Zion (discovered 2 exits: *Dee / *Pro) -7/Deep Caves -6/Proximity Caves -6/Factory (discovered 3 exits: Fac / Low x2) -6/Waste -6/Factory (discovered 2 exits: *Low x2) -6/Lower Caves -6/Lower Caves (discovered 2 exits: *Fac / *Dat) -6/Data Miner -5/Proximity Caves -5/Factory (discovered 6 exits: *Fac x2 / *Upp x2 / *Ext x2) -5/Extension (discovered 2 exits: *Fac / *Cet) -5/Cetus (discovered 2 exits: *Fac / *Arc) -5/Archives (discovered 3 exits: *Fac / *Hub x2) -5/Hub_04(d) (discovered 3 exits: *Fac x3) -4/Factory -4/Waste -4/Factory (discovered 5 exits: *Res x3 / *Upp x2) -4/Upper Caves -4/Upper Caves (discovered 2 exits: *Res / *Zhi) -4/Zhirov -3/Proximity Caves -3/Research -2/Research -2/Quarantine -2/Section 7 (discovered 1 exit: *Acc) History --------- Turn | Location | Event 2 | -11/Scrapyard | Met Revision 17 16 | -11/Scrapyard | Discovered new exit (range 15) 141 | -11/Scrapyard | Entered Materials 238 | -10/Materials | Discovered new exit (range 14) 317 | -10/Materials | Build established: Mutant 419 | -10/Materials | Discovered new exit (range 6) 504 | -10/Materials | Learned 4 Subcaves zone layouts 533 | -10/Materials | Identified exit to Subcaves 533 | -10/Materials | Identified exit to Mines 552 | -10/Materials | Learned Storage security intel 561 | -10/Materials | Learned location of 1 exit from Storage 605 | -10/Materials | Learned Materials stockpile data 767 | -10/Materials | Entered Subcaves 780 | -10/Subcaves | Learned 8 Materials zone layouts 803 | -10/Subcaves | Disturbed a concealed Subdweller 1219 | -10/Subcaves | Ambushed by Subdweller buried in earth 1277 | -10/Subcaves | Ambushed by Subdwellers from Twisted Machinery 1289 | -10/Subcaves | Discovered new exit (range 15) 1513 | -10/Subcaves | Build established: Scavenger-Mutant 1749 | -10/Subcaves | Visited Clippyterm 1754 | -10/Subcaves | Learned Research security intel 2049 | -10/Subcaves | Shifting Twisted Machinery released Sub. Monowheel 2053 | -10/Subcaves | Discovered new exit (range 10) 2522 | -10/Subcaves | Learned location of Zion (-7) 2522 | -10/Subcaves | Met a Zionite searching for "candidates" 2697 | -10/Subcaves | Visited 4L-MR0's lab 2727 | -10/Subcaves | Found Meta Core 2995 | -10/Subcaves | Shifting Twisted Machinery released Sub. Shrapnel Launcher 3037 | -10/Subcaves | Learned Materials security intel 3267 | -10/Subcaves | Entered Materials 3267 | -8/Materials | Evolved 4 slots: Propulsion x2, Utility x2 3268 | -8/Materials | Identified exit to Factory 5108 | -8/Materials | Discovered exit to Factory (range 11) 5415 | -8/Materials | Garrison activated, responded to threat 5667 | -8/Materials | First assault squad dispatched 5738 | -8/Materials | Entered Factory 5738 | -7/Factory | Evolved 2 slots: Power x1, Utility x1 5764 | -7/Factory | Discovered new exit (range 6) 5766 | -7/Factory | Identified exit to Factory 5807 | -7/Factory | Identified exit to Lower Caves 6046 | -7/Factory | Build established: Hacker-Sprinter 6339 | -7/Factory | Repaired Imp. VTOL Module 6646 | -7/Factory | Learned location of Extension (-5) 6670 | -7/Factory | Discovered exit to Factory (range 15) 6686 | -7/Factory | Learned 2 Hub_04(d) zone layouts 6739 | -7/Factory | Learned Extension trap positions 6752 | -7/Factory | Learned 2 Lower Caves zone layouts 6774 | -7/Factory | Learned Extension emergency access door positions 6892 | -7/Factory | Discovered exit to Factory (range 16) 7057 | -7/Factory | Entered Lower Caves 7057 | -7/Lower Caves | Accompanied by 1 ally 7058 | -7/Lower Caves | Identified exit to Lower Caves 7064 | -7/Lower Caves | Learned Factory security intel 7096 | -7/Lower Caves | Attracted the attention of an 0b10 checkpoint 7150 | -7/Lower Caves | Learned 12 Factory zone layouts 7241 | -7/Lower Caves | Entered another Lower Caves area 7241 | -7/Lower Caves | Accompanied by 1 ally 7248 | -7/Lower Caves | Discovered exit to Factory (range 6) 7338 | -7/Lower Caves | Learned Factory security intel 7351 | -7/Lower Caves | Spotted B-75 Beast 7427 | -7/Lower Caves | Identified exit to Zion 7439 | -7/Lower Caves | Entered Zion 7466 | -7/Zion | Discovered new exit (range 14) 7469 | -7/Zion | Identified exit to Proximity Caves 7564 | -7/Zion | Met Imprinter 7596 | -7/Zion | Given A8's code to call for help 7808 | -7/Zion | Visited the Megawrench Repair Shop 7808 | -7/Zion | Megawrench repaired 10 parts 7977 | -7/Zion | Enhanced Grunt warped into view, answering call for help 7981 | -7/Zion | Enhanced Grunt warped into view, answering call for help 7996 | -7/Zion | Discovered new exit (range 3) 7996 | -7/Zion | Saw the warning signs outside the Deep Caves entrance 7998 | -7/Zion | Identified exit to Deep Caves 7999 | -7/Zion | Entered Deep Caves 7999 | -7/Deep Caves | Accompanied by 2 allies 8038 | -7/Deep Caves | Build established: Hacker-Mutant 8164 | -7/Deep Caves | Attacked by Z-Imprinter 8174 | -7/Deep Caves | Allies destroyed Z-Imprinter 8212 | -7/Deep Caves | Found Prototype Protection 8212 | -7/Deep Caves | Identified Zio. Weapon Casing 8619 | -7/Deep Caves | Found Prototype Protection 8917 | -7/Deep Caves | Build established: Scavenger-Mutant 8970 | -7/Deep Caves | Discovered new exit (range 7) 8977 | -7/Deep Caves | Identified exit to Proximity Caves 9198 | -7/Deep Caves | Found Prototype Protection 9424 | -7/Deep Caves | Found Zio. Weapon Casing 9784 | -7/Deep Caves | Spotted AG-99877 9815 | -7/Deep Caves | Destroyed AG-99877 9859 | -7/Deep Caves | Spotted AG-67047 9895 | -7/Deep Caves | Destroyed AG-67047 9903 | -7/Deep Caves | Found GOLEM Unit 10011 | -7/Deep Caves | Build established: Mutant 10056 | -7/Deep Caves | Found Zio. Weapon Casing 10304 | -7/Deep Caves | Triggered Deep Caves wall 10304 | -7/Deep Caves | Spotted AS-75795 10307 | -7/Deep Caves | Destroyed AS-75795 10308 | -7/Deep Caves | Spotted AS-03708 10311 | -7/Deep Caves | Destroyed AS-03708 10338 | -7/Deep Caves | Destroyed 33 combat bots 10413 | -7/Deep Caves | Found Prototype Energy Gun 10413 | -7/Deep Caves | Identified AWS/Thermal 10426 | -7/Deep Caves | Exposed GOLEM chamber 10430 | -7/Deep Caves | Found GOLEM Unit 10854 | -7/Deep Caves | Found GOLEM Unit 10860 | -7/Deep Caves | Found GOLEM Unit 11027 | -7/Deep Caves | Build established: Golem 11591 | -7/Deep Caves | Entered Proximity Caves 11943 | -6/Proximity Caves | Found DCF Scrap (11 items) 12197 | -6/Proximity Caves | Learned Factory stockpile data 12264 | -6/Proximity Caves | Spotted B-75 Beast 12399 | -6/Proximity Caves | Discovered exit to Factory (range 8) 12483 | -6/Proximity Caves | Destroyed B-75 Beast 12584 | -6/Proximity Caves | Core integrity fell below 50% 13156 | -6/Proximity Caves | Entered Factory 13156 | -6/Factory | Evolved 2 slots: Utility x2 13157 | -6/Factory | Identified exit to Lower Caves 13158 | -6/Factory | Identified exit to Factory 13273 | -6/Factory | Sucked down chute 13273 | -6/Factory | Entered Waste 13286 | -6/Waste | Spotted C-40 Crusher 13288 | -6/Waste | EMP discharged 13341 | -6/Waste | Crushed by falling debris 13341 | -6/Waste | System corruption reached 10% 13341 | -6/Waste | Crushed by Compactor (1 part destroyed) 13345 | -6/Waste | Destroyed C-40 Crusher 13375 | -6/Waste | Lost 4 parts (1n3u) 13377 | -6/Waste | Spotted C-40 Crusher 13388 | -6/Waste | EMP discharged 13402 | -6/Waste | Destroyed C-40 Crusher 13426 | -6/Waste | Spotted C-40 Crusher 13452 | -6/Waste | Spotted C-40 Crusher 13452 | -6/Waste | Destroyed C-40 Crusher 13455 | -6/Waste | Destroyed C-40 Crusher 13488 | -6/Waste | EMP discharged 13525 | -6/Waste | Spotted C-40 Crusher 13562 | -6/Waste | Destroyed C-40 Crusher 13588 | -6/Waste | EMP discharged 13588 | -6/Waste | System corruption reached 30% 13594 | -6/Waste | Discovered new exit (range 10) 13612 | -6/Waste | Entered Factory 14736 | -6/Factory | Entered Lower Caves 14789 | -6/Lower Caves | Learned 8 Factory zone layouts 15587 | -6/Lower Caves | Learned Factory terminal intel 15798 | -6/Lower Caves | Discovered new exit (range 5) 15807 | -6/Lower Caves | Entered another Lower Caves area 15939 | -6/Lower Caves | Discovered exit to Factory (range 15) 16394 | -6/Lower Caves | Discovered new exit (range 8) 16518 | -6/Lower Caves | Entered Data Miner 16519 | -6/Data Miner | Discovered new exit (range 6) 16554 | -6/Data Miner | Met Data Miner 16593 | -6/Data Miner | Learned location of Section 7 (-2) 16593 | -6/Data Miner | Acquired the access code to Warlord's prototype stash 16622 | -6/Data Miner | Received God Mode back door access code from Data Miner 16671 | -6/Data Miner | Entered Proximity Caves 16794 | -5/Proximity Caves | Spotter reported a threat 16971 | -5/Proximity Caves | Spotter reported a threat 17410 | -5/Proximity Caves | Attracted the attention of an 0b10 outpost 17522 | -5/Proximity Caves | Destroyed 14 combat bots 17771 | -5/Proximity Caves | Attracted the attention of an 0b10 checkpoint 18309 | -5/Proximity Caves | Learned Factory emergency access door positions 18361 | -5/Proximity Caves | Discovered exit to Factory (range 5) 18385 | -5/Proximity Caves | Spotted B-75 Beast 18399 | -5/Proximity Caves | Entered Factory 18399 | -5/Factory | Evolved 2 slots: Power x1, Utility x1 18400 | -5/Factory | Identified exit to Extension 18400 | -5/Factory | Identified exit to Factory 18400 | -5/Factory | Attached Meta Core, gained temporary slots: Propulsion, Utility, Weapon 18402 | -5/Factory | Loaded intel: 27 terminal locations 18699 | -5/Factory | Search patrols dispatched 18988 | -5/Factory | Identified exit to Upper Caves 19371 | -5/Factory | Discovered exit to Factory (range 9) 19478 | -5/Factory | Cargo convoy interrupted 19599 | -5/Factory | First assault squad dispatched 20148 | -5/Factory | Entered Extension 20149 | -5/Extension | Loaded intel: 22 trap records 20593 | -5/Extension | Lost 3 allies 20679 | -5/Extension | Rescued a captive Derelict 20750 | -5/Extension | Found Prototype Launcher 20750 | -5/Extension | Identified Mni. Smartbomb Launcher 21006 | -5/Extension | Rescued a captive Derelict 21026 | -5/Extension | Rescued a captive Derelict 21192 | -5/Extension | Rescued a captive Derelict 21336 | -5/Extension | Rescued A7 21348 | -5/Extension | First assault squad dispatched 21438 | -5/Extension | Build established: Commander-Golem 21516 | -5/Extension | Lost 14 allies 21577 | -5/Extension | Discovered exit to Factory (range 10) 21580 | -5/Extension | Discovered new exit (range 6) 21603 | -5/Extension | Identified exit to Cetus 21629 | -5/Extension | Entered Cetus 21629 | -5/Cetus | Accompanied by 2 allies (A7) 21634 | -5/Cetus | Acquired a Cetus Manufacturing Module code from A7 21666 | -5/Cetus | Spotted Cetus Guard 21666 | -5/Cetus | Spotted Cetus Guard 21670 | -5/Cetus | Spotted Cetus Guard 21672 | -5/Cetus | Spotted Cetus Guard 21673 | -5/Cetus | Allies destroyed Cetus Guard 21679 | -5/Cetus | Destroyed Cetus Guard 21683 | -5/Cetus | Allies destroyed Cetus Guard 21690 | -5/Cetus | Destroyed Cetus Guard 21782 | -5/Cetus | Build established: Scavenger-Golem 21817 | -5/Cetus | Started Cetus Manufacturing Module 21842 | -5/Cetus | Manufactured an Enhanced Grunt 21855 | -5/Cetus | Discovered new exit (range 15) 21867 | -5/Cetus | Manufactured an Enhanced Grunt 21892 | -5/Cetus | Manufactured an Enhanced Grunt 21899 | -5/Cetus | Spotted Cetus Guard 21899 | -5/Cetus | Spotted Cetus Guard 21904 | -5/Cetus | Spotted Cetus Guard 21910 | -5/Cetus | Spotted Cetus Guard 21912 | -5/Cetus | Allies destroyed Cetus Guard 21917 | -5/Cetus | Manufactured an Enhanced Grunt 21917 | -5/Cetus | Allies destroyed Cetus Guard 21926 | -5/Cetus | Allies destroyed Cetus Guard 21933 | -5/Cetus | Allies destroyed Cetus Guard 21942 | -5/Cetus | Manufactured an Enhanced Grunt 21957 | -5/Cetus | Discovered exit to Factory (range 16) 21970 | -5/Cetus | Met Revision 17 22044 | -5/Cetus | Identified exit to Archives 22048 | -5/Cetus | Entered Archives 22048 | -5/Archives | Accompanied by 5 allies (A7) 22239 | -5/Archives | Discovered new exit (range 15) 22693 | -5/Archives | Discovered exit to Factory (range 16) 23154 | -5/Archives | Unable to access archive contents 23302 | -5/Archives | Discovered new exit (range 13) 23338 | -5/Archives | Identified exit to Hub_04(d) 25895 | -5/Archives | Entered Hub_04(d) 25895 | -5/Hub_04(d) | Accompanied by 4 allies 26201 | -5/Hub_04(d) | Build established: Commander-Golem 26721 | -5/Hub_04(d) | Network Hub disabled 26763 | -5/Hub_04(d) | Build established: Golem 26793 | -5/Hub_04(d) | Spotted Lightning 26794 | -5/Hub_04(d) | Spotted Lightning 26804 | -5/Hub_04(d) | Spotted Lightning 26840 | -5/Hub_04(d) | Lost 3 allies 26845 | -5/Hub_04(d) | Destroyed Lightning 26850 | -5/Hub_04(d) | Destroyed Lightning 26869 | -5/Hub_04(d) | Destroyed Lightning 26885 | -5/Hub_04(d) | Found Prototype Device 26885 | -5/Hub_04(d) | Identified Exp. EM Disruption Field 26890 | -5/Hub_04(d) | Found Prototype Device 26890 | -5/Hub_04(d) | Identified Exp. Phase Shifter 26892 | -5/Hub_04(d) | Spotted Lightning 26894 | -5/Hub_04(d) | Spotted Lightning 26894 | -5/Hub_04(d) | Spotted Lightning 26905 | -5/Hub_04(d) | Destroyed Lightning 26917 | -5/Hub_04(d) | Destroyed Lightning 26944 | -5/Hub_04(d) | Destroyed Lightning 26985 | -5/Hub_04(d) | Found Prototype Processor 26985 | -5/Hub_04(d) | Identified Exp. Targeting Computer 27014 | -5/Hub_04(d) | Found Prototype Energy Cannon 27094 | -5/Hub_04(d) | Spotted Lightning 27094 | -5/Hub_04(d) | Spotted Lightning 27111 | -5/Hub_04(d) | Spotted Lightning 27113 | -5/Hub_04(d) | System corruption reached 10% 27157 | -5/Hub_04(d) | Destroyed Lightning 27171 | -5/Hub_04(d) | Build established: Scavenger-Golem 27182 | -5/Hub_04(d) | Destroyed Lightning 27198 | -5/Hub_04(d) | Destroyed Lightning 27205 | -5/Hub_04(d) | Found Exp. EM Disruption Field 27219 | -5/Hub_04(d) | Found Exp. EM Disruption Field 27360 | -5/Hub_04(d) | Network Hub disabled 27420 | -5/Hub_04(d) | Spotted Lightning 27423 | -5/Hub_04(d) | Spotted Lightning 27444 | -5/Hub_04(d) | First assault squad dispatched 27465 | -5/Hub_04(d) | Destroyed Lightning 27468 | -5/Hub_04(d) | Network Hub disabled 27468 | -5/Hub_04(d) | Spotted Lightning 27468 | -5/Hub_04(d) | Network Hub disabled 27498 | -5/Hub_04(d) | Garrison activated, responded to threat 27532 | -5/Hub_04(d) | Lost 3 parts (2u1w) 27571 | -5/Hub_04(d) | Destroyed Lightning 27578 | -5/Hub_04(d) | Destroyed Lightning 27608 | -5/Hub_04(d) | Destroyed 7 combat bots 27622 | -5/Hub_04(d) | Core integrity fell below 50% 27636 | -5/Hub_04(d) | Identified EMDS 27662 | -5/Hub_04(d) | Lost 10 parts (1p3n3u3w) 27701 | -5/Hub_04(d) | Found EMDS 28134 | -5/Hub_04(d) | Lost 3 parts (3u) 28245 | -5/Hub_04(d) | Discovered exit to Factory (range 15) 28677 | -5/Hub_04(d) | High security lockdown imminent 28708 | -5/Hub_04(d) | Lost 3 parts (3u) 28757 | -5/Hub_04(d) | High security lockdown engaged 28760 | -5/Hub_04(d) | Core integrity fell below 20% 28776 | -5/Hub_04(d) | Entered Factory 28776 | -4/Factory | Evolved 2 slots: Utility x2 28806 | -4/Factory | Lost 7 parts (2p1n2u2w) 28983 | -4/Factory | Lost 6 parts (1p1n4u) 28989 | -4/Factory | Destroyed 8 combat bots 29068 | -4/Factory | First assault squad dispatched 29078 | -4/Factory | Lost 4 parts (1p1n2u) 29092 | -4/Factory | Sucked down chute 29092 | -4/Factory | Entered Waste 29092 | -4/Waste | The area was eerily silent 29173 | -4/Waste | Discovered new exit (range 11) 29281 | -4/Waste | Entered Factory 29385 | -4/Factory | Build established: Mutant 29596 | -4/Factory | Spotted B-86 Titan 29642 | -4/Factory | System corruption reached 10% 29749 | -4/Factory | Discovered new exit (range 22) 29756 | -4/Factory | Discovered new exit (range 13) 29781 | -4/Factory | Search patrols dispatched 29794 | -4/Factory | Identified exit to Upper Caves 29849 | -4/Factory | Discovered new exit (range 6) 29851 | -4/Factory | Entered Upper Caves 29986 | -4/Upper Caves | Learned location of Quarantine (-2) 30058 | -4/Upper Caves | Acquired the password to a Derelict Tinkerer's latest research 30068 | -4/Upper Caves | Discovered new exit (range 7) 30106 | -4/Upper Caves | Found Prototype Special Weapon 30114 | -4/Upper Caves | Entered another Upper Caves area 30115 | -4/Upper Caves | Encountered a Warlord checkpoint 30143 | -4/Upper Caves | Spotted B-86 Titan 30255 | -4/Upper Caves | Discovered new exit (range 7) 30304 | -4/Upper Caves | Build established: Infiltrator-Mutant 30362 | -4/Upper Caves | Learned 8 Research zone layouts 30366 | -4/Upper Caves | Discovered new exit (range 11) 30417 | -4/Upper Caves | Entered Zhirov 30417 | -4/Zhirov | Discovered new exit (range 3) 30424 | -4/Zhirov | Met Zhirov 30431 | -4/Zhirov | Learned location of Testing (-3) 30431 | -4/Zhirov | Learned location of Command (-1) 30435 | -4/Zhirov | Zhirov requested help retrieving the SGEMP Prototype 30444 | -4/Zhirov | Found Alien Artifact 30444 | -4/Zhirov | Identified Integrated Reactor 30444 | -4/Zhirov | Installed Integrated Reactor, increased core energy generation (+10) 30478 | -4/Zhirov | Identified Molecular Deconstructor 30558 | -4/Zhirov | Found Alien Artifact 30612 | -4/Zhirov | Entered Proximity Caves 30615 | -3/Proximity Caves | Spotter reported a threat 30718 | -3/Proximity Caves | Discovered new exit (range 19) 30724 | -3/Proximity Caves | Attracted the attention of an 0b10 checkpoint 30725 | -3/Proximity Caves | Entered Research 30725 | -3/Research | Evolved 2 slots: Propulsion x2 30820 | -3/Research | Discovered new exit (range 3) 30822 | -3/Research | Identified exit to Research 30823 | -3/Research | Entered another Research area 30823 | -2/Research | Evolved 2 slots: Utility x2 30871 | -2/Research | Lost 6 parts (1p2n3u) 30883 | -2/Research | Discovered new exit (range 10) 30885 | -2/Research | Identified exit to Quarantine 30886 | -2/Research | Entered Quarantine 30894 | -2/Quarantine | Found Alien Artifact 30916 | -2/Quarantine | Found Quantum Capacitor 30946 | -2/Quarantine | Found Alien Artifact 30946 | -2/Quarantine | Identified Core Reset Matrix 30946 | -2/Quarantine | Identified Transdimensional Reconstructor 30946 | -2/Quarantine | Identified Phase Redirector 30946 | -2/Quarantine | Used Core Reset Matrix 30950 | -2/Quarantine | Detected hypermatrix surge 30950 | -2/Quarantine | Sensed 9 artifacts in vicinity 30990 | -2/Quarantine | Found Core Cannon 31039 | -2/Quarantine | Found Unknown Launcher 31039 | -2/Quarantine | Identified Fusion Bomb Launcher 31080 | -2/Quarantine | Found Subatomic Replicator 31128 | -2/Quarantine | Spotted Fortress 31146 | -2/Quarantine | Discovered new exit (range 6) 31147 | -2/Quarantine | Identified exit to Section 7 31147 | -2/Quarantine | Entered Section 7 31148 | -2/Section 7 | Sensed 20 artifacts in vicinity 31260 | -2/Section 7 | Spotted B-90 Cyclops 31267 | -2/Section 7 | Found Integrity Redistributor 31272 | -2/Section 7 | Identified exit to Access 31287 | -2/Section 7 | Scanned by Researcher 31288 | -2/Section 7 | Found Spacefold Activator 31302 | -2/Section 7 | Intercept squad dispatched 31306 | -2/Section 7 | Spotted Tracker 31307 | -2/Section 7 | Found Integrated Reactor 31307 | -2/Section 7 | Installed Integrated Reactor, increased core energy generation (+10) 31307 | -2/Section 7 | Spotted Tracker 31310 | -2/Section 7 | Warped through subspace 31311 | -2/Section 7 | Used Integrity Redistributor, redistributed integrity from core (-96) 31340 | -2/Section 7 | Lost 3 parts (1p2u) 31342 | -2/Section 7 | Spotted S7 Guard 31350 | -2/Section 7 | Spotted Executioner 31362 | -2/Section 7 | Core integrity fell below 50% 31368 | -2/Section 7 | Spotted B-99 Colossus 31390 | -2/Section 7 | Core integrity fell below 20% 31401 | -2/Section 7 | Integrated with Sigix Exoskeleton 31407 | -2/Section 7 | Destroyed by Tracker with Immobilizer Last Messages --------------- Tor triangulation: ONLINE. Systems fully integrated. Proceed to surface for extraction. 31401_ Quantum Shear penetrates Machine. 31401_ Machine disabled. 31401_ Quantum Shear penetrates Tracker. 31401_ ALERT: Sigix Warrior spotted in local area. Maximum security lockdown in progress. 31402_ ALERT: Machine network offline. 31403_ ALERT: Performing unscheduled system reset. 31403_ Quantum Shear penetrates Tracker. 31403_ Quantum Shear penetrates Machine. 31404_ ALERT: Lockdown in effect, collecting threat data. 31406_ ALERT: Assault forces dispatched. 31406_ Quantum Shear penetrates Machine. 31406_ Machine disabled. 31406_ Quantum Shear penetrates Machine. [Achievement: Torch] Map ----- +----------------------------------------------------+ | "???? ??????????????? | | " """"" ??????????????? | | " ????????????? | | """ ????????????? | | " ????????????? | | ????????????? | | ????????????? | | ????????????? | | ?????????????? | | """"" """""??????????????? | | """""""""""""" ### """"""?????????????? | | """"""""""""""""""### """"""" ???????????? | | ########################+++###########??????????? | | ????????????#########""" """#########?????????? | | ???????????##########"""ss """##########????????? | | ???????????##########"" ""##########????????? | | ??????????###########"" ""###########???????? | | ?????????############"" ""############??????? | | ?????????############"" ""############??????? | | ?????????############"" ""############??????? | | ????????#############" "#############?????? | | ????????#############" "#############?????? | | ????????#############" "#############?????? | | ????????#############"" | T"#############?????? | | ????????#############" "!" "#############?????? | | ???????##############" "X" "##############????? | | ????????#############" "#" "#############?????? | | ????????#############"""###"""#############?????? | | ????????###################################?????? | | ????????###################################?????? | | ????????###################################?????? | | ?????????#################################??????? | | ?????????#################################??????? | | ?????????#################################??????? | | ??????????###############################???????? | | ???????????#############################????????? | | ???????????#############################????????? | | ????????????###########################?????????? | | ?????????????#########################??????????? | | ??????????????#######################???????????? | | ????????????????###################?????????????? | | ?????????????????#################??????????????? | | ????????????????????###########?????????????????? | | ?????????????????????????#??????????????????????? | | ????????????????????????????????????????????????? | | ????????????????????????????????????????????????? | | ????????????????????????????????????????????????? | | ????????????????????????????????????????????????? | | ????????????????????????????????????????????????? | | ????????????????????????????????????????????????? | +----------------------------------------------------+ Best States ------------- Heat Dissipation 74 Coolant Potential 50 Energy Generation 65 Energy Capacity 2210 Matter Stores 300 Matter Capacity 300 Sight Range 23 Robot Scan Range 15 Terrain Scan Density 10 ECM Strength 2 Jamming Range 16 Cloak Strength 2 Power Amplification 30 EM Shielding 2 Corruption Containment 12 Corruption Block 5 Armor Coverage 650 Resistance: KI 15 Resistance: TH 15 Resistance: EX 15 Resistance: EM 75 Resistance: I 15 Resistance: S 15 Resistance: P 15 Propulsion Shielding 66 Weapon Shielding 100 Point Defense Rating 160 Weapon Cycling 20 Phase Shifting 20 Evasion (%) 76 Targeting Accuracy 24 Target Analysis 9 Core Analysis 6 Recoil Reduction 4 Energy Filtering 30 Particle Charging 20 Force Boost 30 Offensive Hacking 58 Defensive Hacking 22 Item Schematics ----------------- Lgt. Quantum Reactor | -2/Quarantine | Hacked Enh. Quantum Rifle | -2/Quarantine | Hacked Robot Schematics ------------------ None Fabricated ------------ Nothing Alien Tech Used ----------------- Integrated Reactor Core Reset Matrix Phase Redirector Core Cannon Spacefold Activator Transdimensional Reconstructor Integrity Redistributor Sigix Exoskeleton Sigix Sheargun Achievements -------------- 404 Signature Confirmed Torch Challenges ------------ None Game ------ Seed VisualLaserCorpse Manual? 0 Play Time 05:56:27 Cumulative 235.1 hours Start 2024.08.13 @ 11:14:31 End 2024.08.17 @ 20:41:32 Sessions 13 Manual Loads 0 Difficulty Rogue Special Mode None Game No. 193 Rogue 188 Adventurer 5 Explorer 0 Win Type - Total 4 Types 2/0/2/0/0/0/0/0/0 Lore% 60 Gallery% 79 Achievement% 64 Wizard Run 0 Options --------- Layout 2 ASCII 0 Keyboard 0 Movement Mouse Keybinds 0 Fullscreen 2 Font 24/Smallcaps Map View 50x44 Zoom Use 0% Tactical HUD 1 Map Filters NONE Filters NONE Steam 1 RUN: 79fd47ca-c73c-4f5c-bad0-8d4fe0231c8f